bitfinex-derivatives/quotes_BTCF0:USTF0_20251103
["timestamp","ask_amount","ask_price","bid_price","bid_amount"]
[1762205875102,0.4996649,106920.0,106910.0,0.23529899]
[1762205875705,0.04532,106920.0,106910.0,0.23529899]
[1762205876200,0.1388649,106920.0,106910.0,0.23529899]
[1762205876603,0.04532,106920.0,106910.0,0.23529899]
[1762205876802,0.1388649,106920.0,106910.0,0.23529899]
[1762205877204,0.13987627,106920.0,106910.0,0.23529899]
[1762205879008,0.13987627,106920.0,106910.0,0.23629899]
[1762205879509,0.04633137,106920.0,106910.0,0.23529899]
[1762205880609,0.13987627,106920.0,106910.0,0.23529899]
[1762205880806,0.50067627,106920.0,106910.0,0.14174529]
[1762205881006,0.70131669,106920.0,106910.0,0.35834083]
[1762205881198,0.70131669,106920.0,106910.0,0.03342083]
[1762205881897,0.1388737,106910.0,106900.0,0.45296529]
[1762205882099,0.5066537,106910.0,106900.0,0.40849529]
[1762205882402,0.70032549,106910.0,106900.0,0.17145333]
[1762205882711,0.50068507,106910.0,106900.0,0.18515333]
[1762205882897,0.40713137,106910.0,106900.0,0.18515333]
[1762205883208,0.00101137,106910.0,106900.0,0.56268696]
[1762205883397,0.04633137,106910.0,106900.0,0.56268696]
[1762205883598,0.04633137,106910.0,106900.0,0.20188696]
[1762205883804,0.13988497,106910.0,106900.0,0.20188696]
[1762205884203,0.50068497,106910.0,106900.0,0.20188696]
[1762205884405,0.50168497,106910.0,106900.0,0.20188696]
[1762205884601,0.61374302,106910.0,106900.0,0.17710371]
[1762205884802,0.61274302,106910.0,106900.0,0.19951371]
[1762205885001,0.40713137,106910.0,106900.0,0.20288696]
[1762205885314,0.50866507,106910.0,106900.0,0.20050669]
[1762205885501,0.50866507,106910.0,106900.0,0.22156669]
[1762205885700,0.50068507,106910.0,106900.0,0.23526669]
[1762205887601,0.60676312,106910.0,106900.0,0.23526669]
[1762205887904,0.00201137,106910.0,106900.0,0.30696501]
[1762205888108,0.3608,106920.0,106910.0,0.1517238]
[1762205888404,0.40612,106930.0,106920.0,0.151715]
[1762205888706,0.04532,106930.0,106920.0,0.30685715]
[1762205889604,0.02229,106930.0,106920.0,0.66765715]
[1762205890004,0.02229,106930.0,106920.0,0.61759305]
[1762205890199,0.02229,106930.0,106920.0,0.68456423]
[1762205890395,0.36878,106950.0,106920.0,0.77198178]
[1762205890396,0.3608,106950.0,106920.0,0.77198178]
[1762205890701,0.40612,106950.0,106940.0,0.23507967]
[1762205891808,0.40612,106950.0,106940.0,0.23607967]
[1762205892903,0.3608,106950.0,106940.0,0.42857527]
[1762205893310,0.3608,106950.0,106940.0,0.42853424]
[1762205893510,0.40612,106960.0,106950.0,0.1516888]
[1762205893699,0.40612,106960.0,106950.0,0.50984035]
[1762205894606,0.04532,106960.0,106950.0,0.50984035]
[1762205894914,0.04532,106960.0,106950.0,0.70233595]
[1762205895112,0.40854,106970.0,106960.0,0.15202]
[1762205895612,0.04774,106970.0,106960.0,0.18533155]
[1762205896408,0.04774,106970.0,106960.0,0.15202]
[1762205896615,0.1412411,106970.0,106960.0,0.1520199]
[1762205897010,0.5020411,106970.0,106960.0,0.05851]
[1762205897408,0.1382499,106960.0,106950.0,0.51018015]
[1762205897611,0.1382499,106960.0,106950.0,0.41666155]
[1762205898118,0.1382499,106960.0,106950.0,0.51018035]
[1762205898612,0.1382588,106950.0,106940.0,0.21321825]
[1762205898807,0.4990588,106950.0,106940.0,0.51010895]
[1762205899208,0.40554,106950.0,106940.0,0.51010895]
[1762205899413,0.04474,106960.0,106950.0,0.1520287]
[1762205899609,0.4788838,106970.0,106960.0,0.1383199]
[1762205899810,0.5020438,106970.0,106960.0,0.4767799]
[1762205900517,0.003,106970.0,106960.0,0.6692755]
[1762205900711,0.003,106970.0,106960.0,0.8375799]
[1762205900912,0.003,106970.0,106960.0,0.87089145]
[1762205901422,0.003,106970.0,106960.0,1.06338705]
[1762205901619,0.003,106970.0,106960.0,1.11341635]
[1762205901924,0.003,106970.0,106960.0,0.92092075]
[1762205902421,0.003,106970.0,106960.0,0.87089145]
[1762205902914,0.04774,106970.0,106960.0,0.87089145]
[1762205903520,0.02458,106970.0,106960.0,0.87089145]
[1762205903720,0.02458,106970.0,106960.0,0.51009145]
[1762205904321,0.003,106970.0,106960.0,0.51009145]
[1762205904525,0.003,106970.0,106960.0,0.70258705]
[1762205904719,0.02158,106990.0,106980.0,0.02265]
[1762205904920,0.04474,106990.0,106980.0,0.4767226]
[1762205905411,0.04474,106990.0,106980.0,0.4862072]
[1762205905820,0.04474,106990.0,106980.0,0.4767226]
[1762205906117,0.04474,106990.0,106980.0,0.48590948]
[1762205907011,0.1382238,106990.0,106980.0,0.4767226]
[1762205907216,0.4990238,106990.0,106980.0,0.38323]
[1762205907618,0.5039838,106990.0,106980.0,0.32472]
[1762205908123,0.5039838,106990.0,106980.0,0.36934]
[1762205908320,0.4990238,106990.0,106980.0,0.38292]
[1762205909016,0.4990238,106990.0,106980.0,0.4764126]
[1762205909217,0.4990238,106990.0,106980.0,0.38292]
[1762205910317,0.1390126,106980.0,106970.0,0.38296]
[1762205910629,0.4998126,106980.0,106970.0,0.38296]
[1762205910822,0.4998126,106980.0,106970.0,0.4764613]
[1762205911721,0.4998126,106980.0,106970.0,0.38296]
[1762205913124,0.4998126,106980.0,106970.0,0.4764613]
[1762205913517,0.4998126,106980.0,106970.0,0.38296]
[1762205913719,0.1390213,106970.0,106960.0,0.1518299]
[1762205913925,0.4998213,106970.0,106960.0,0.38296]
[1762205914326,0.4998213,106970.0,106960.0,0.47647]
[1762205914829,0.4998213,106970.0,106960.0,0.38296]
[1762205915918,0.4998213,106970.0,106960.0,0.47647]
[1762205917721,0.4998213,106970.0,106960.0,0.04462]
[1762205918019,0.4998213,106970.0,106960.0,0.1517099]
[1762205918728,0.5078013,106970.0,106960.0,0.02265]
[1762205919021,0.1390299,106960.0,106950.0,0.46630085]
[1762205919220,0.4998299,106960.0,106950.0,0.50979025]
[1762205919616,0.5068099,106960.0,106950.0,0.47412025]
[1762205919825,0.4998299,106960.0,106950.0,0.50967025]
[1762205921026,0.49983,106960.0,106950.0,0.50967025]
[1762205926519,0.49983,106960.0,106950.0,0.41615155]
[1762205926717,0.63803666,106960.0,106950.0,0.03331155]
[1762205927020,0.1382693,106950.0,106940.0,0.50872955]
[1762205927217,0.4990693,106950.0,106940.0,0.18412955]
[1762205928127,0.40555,106950.0,106940.0,0.18412955]
[1762205928930,0.4990693,106950.0,106940.0,0.18412955]
[1762205929431,0.4990693,106950.0,106940.0,0.09026155]
[1762205929631,0.40555,106950.0,106940.0,0.18378955]
[1762205929830,0.4990693,106950.0,106940.0,0.18378955]
[1762205937231,0.3608,106950.0,106940.0,0.18378955]
[1762205937438,0.4990615,106960.0,106950.0,0.1504693]
[1762205937632,0.04475,106960.0,106950.0,0.19330234]
[1762205937837,0.04475,106960.0,106950.0,0.51790234]
[1762205938036,0.04475,106960.0,106950.0,0.50835825]
[1762205938339,0.04475,106960.0,106950.0,0.55838755]
[1762205939831,0.1382605,106960.0,106950.0,0.55838755]
[1762205940032,0.04475,106960.0,106950.0,0.56752747]
[1762205940227,0.38388,106970.0,106960.0,0.1504605]
[1762205940431,0.3608,106970.0,106960.0,0.18376186]
[1762205940632,0.4990495,106980.0,106970.0,0.1504518]
[1762205940937,0.4990495,106980.0,106970.0,0.09023801]
[1762205941239,0.1452318,106970.0,106960.0,0.03328801]
[1762205941437,0.1382605,106960.0,106950.0,0.09023801]
[1762205941643,0.5070405,106960.0,106950.0,0.05554801]
[1762205941845,0.5070405,106960.0,106950.0,0.38014801]
[1762205942141,0.63826716,106960.0,106950.0,0.38014801]
[1762205942340,0.63826716,106960.0,106950.0,0.35788801]
[1762205942535,0.63826716,106960.0,106950.0,0.03328801]
[1762205942746,0.1432293,106950.0,106940.0,0.03328801]
[1762205942939,0.63525596,106950.0,106940.0,0.35784801]
[1762205943443,0.63525596,106950.0,106940.0,0.40155801]
[1762205943632,0.144828,106940.0,106930.0,0.05002931]
[1762205943944,0.1452755,106920.0,106910.0,0.0937393]
[1762205944238,0.1452755,106920.0,106910.0,0.5250936]
[1762205944239,0.63032216,106920.0,106910.0,0.5250936]
[1762205944442,0.4990955,106920.0,106910.0,0.4315393]
[1762205944836,0.4990955,106920.0,106910.0,0.5250936]
[1762205945246,0.4990955,106920.0,106910.0,0.05695]
[1762205945435,0.4990955,106920.0,106910.0,0.4750643]
[1762205946037,0.4990955,106920.0,106910.0,0.38151]
[1762205946445,0.4990955,106920.0,106910.0,0.05695]
[1762205946646,0.63032216,106920.0,106910.0,0.38155]
[1762205947044,0.63980082,106920.0,106910.0,0.38155]
[1762205947250,1.00758082,106920.0,106910.0,0.3246]
[1762205947548,0.1383042,106910.0,106900.0,0.11006615]
[1762205947744,0.63033086,106910.0,106900.0,0.06003685]
[1762205947932,0.63529086,106910.0,106900.0,0.38463685]
[1762205948135,0.86913086,106910.0,106900.0,0.00308685]
[1762205948340,0.1383218,106890.0,106880.0,0.05702953]
[1762205948545,0.99114846,106890.0,106880.0,0.38162953]
[1762205948849,0.99114846,106890.0,106880.0,0.47521003]
[1762205949048,0.99114846,106890.0,106880.0,0.38162953]
[1762205949344,0.99912846,106890.0,106880.0,7.953e-05]
[1762205949748,1.55760846,106890.0,106880.0,7.953e-05]
[1762205950144,1.4263818,106890.0,106880.0,7.953e-05]
[1762205950449,1.55760846,106890.0,106880.0,0.00107953]
[1762205951050,1.55760846,106890.0,106880.0,7.953e-05]
[1762205952249,1.32372846,106890.0,106880.0,7.953e-05]
[1762205952447,1.55760846,106890.0,106880.0,7.953e-05]
[1762205953250,1.32372846,106890.0,106880.0,7.953e-05]
[1762205953756,1.31574846,106890.0,106880.0,0.15061003]
[1762205953946,1.1925018,106890.0,106880.0,0.13737003]
[1762205955451,1.1925018,106890.0,106880.0,0.04378953]
[1762205955953,1.1845218,106890.0,106880.0,0.05727953]
[1762205956248,1.1845218,106890.0,106880.0,0.05891953]
[1762205956550,0.8599218,106890.0,106880.0,0.15250003]
[1762205958354,0.8599218,106890.0,106880.0,0.05891953]
[1762205958745,0.8599218,106890.0,106880.0,0.15250003]
[1762205959054,0.99912846,106890.0,106880.0,0.15250003]
[1762205959256,0.99114846,106890.0,106880.0,0.15250003]
[1762205960550,0.99912846,106890.0,106880.0,0.11666003]
[1762205960757,0.99912846,106890.0,106880.0,0.13901003]
[1762205960954,0.99912846,106890.0,106880.0,0.04542953]
[1762205961970,0.99912846,106890.0,106880.0,0.13901013]
[1762205962167,0.99912846,106890.0,106880.0,7.953e-05]
[1762205962362,0.99912846,106890.0,106880.0,0.13901013]
[1762205962560,0.99912846,106890.0,106880.0,0.15250013]
[1762205962561,0.99114846,106890.0,106880.0,0.15250013]
[1762205962868,0.8599218,106890.0,106880.0,0.15250013]
[1762205963667,0.4991218,106890.0,106880.0,0.15250013]
[1762205964163,0.40555,106890.0,106880.0,0.15250013]
[1762205964680,0.4991218,106890.0,106880.0,0.15250013]
[1762205964970,0.40555,106890.0,106880.0,0.15250013]
[1762205966671,0.4991218,106890.0,106880.0,0.15250013]
[1762205967264,0.40555,106890.0,106880.0,0.15250013]
[1762205967767,0.4991218,106890.0,106880.0,0.15250013]
[1762205969268,0.4991218,106890.0,106880.0,0.05891953]
[1762205970168,0.4991218,106890.0,106880.0,0.15250013]
[1762205970366,0.4991218,106890.0,106880.0,0.05891953]
[1762205970566,0.99912846,106890.0,106880.0,7.953e-05]
[1762205970767,1.55772846,106890.0,106880.0,7.953e-05]
[1762205971260,0.1386493,106870.0,106860.0,0.47914021]
[1762205971566,0.4994493,106870.0,106860.0,0.47914601]
[1762205971770,2.00867232,106870.0,106860.0,0.47914601]
[1762205972072,1.9994493,106870.0,106860.0,0.47914601]
[1762205972269,1.99952883,106870.0,106860.0,0.48114601]
[1762205973370,1.99952883,106870.0,106860.0,0.47914601]
[1762205973673,1.99952883,106870.0,106860.0,0.51251164]
[1762205974273,2.00873784,106870.0,106860.0,0.51251164]
[1762205974476,1.99952883,106870.0,106860.0,0.51251164]
[1762205974870,1.99952883,106870.0,106860.0,0.41891364]
[1762205975372,1.99952883,106870.0,106860.0,0.51251164]
[1762205976065,2.00448883,106870.0,106860.0,0.41891364]
[1762205976371,1.99952883,106870.0,106860.0,0.51251164]
[1762205977177,1.99952883,106870.0,106860.0,0.56254094]
[1762205977874,1.90593953,106870.0,106860.0,0.56254094]
[1762205978173,1.99952883,106870.0,106860.0,0.52917531]
[1762205978579,1.90593953,106870.0,106860.0,0.52917531]
[1762205980364,1.50007953,106870.0,106860.0,1.02120197]
[1762205981977,1.50007953,106870.0,106860.0,1.02220197]
[1762205982480,1.50007953,106870.0,106860.0,0.97217267]
[1762205983480,1.50007953,106870.0,106860.0,0.84094601]
[1762205983679,1.50007953,106870.0,106860.0,0.97217267]
[1762205983980,1.50007953,106870.0,106860.0,1.03914385]
[1762205985584,1.50007953,106870.0,106860.0,0.97217267]
[1762205985778,0.04424953,106870.0,106860.0,0.97217267]
[1762205986480,0.04424953,106870.0,106860.0,0.84094601]
[1762205987686,7.953e-05,106870.0,106860.0,1.03367416]
[1762205987986,7.953e-05,106870.0,106860.0,1.33460534]
[1762205989682,0.13839853,106870.0,106860.0,0.22239689]
[1762205989887,0.13839853,106870.0,106860.0,0.53027243]
[1762205990184,0.49919853,106870.0,106860.0,0.52927243]
[1762205990385,0.49919853,106870.0,106860.0,0.53127243]
[1762205990586,0.13839853,106870.0,106860.0,0.53127243]
[1762205990786,0.13839853,106870.0,106860.0,0.52927243]
[1762205991384,0.04480953,106870.0,106860.0,0.52927243]
[1762205991584,0.13839883,106870.0,106860.0,0.52927243]
[1762205992391,0.13839883,106870.0,106860.0,0.47910571]
[1762205994287,0.04480953,106870.0,106860.0,0.47910571]
[1762205995391,0.04480953,106870.0,106860.0,0.54607689]
[1762205996580,0.13839883,106870.0,106860.0,0.47910571]
[1762205997089,0.13839883,106870.0,106860.0,0.54607689]
[1762205998989,0.38603738,106900.0,106890.0,0.05804]
[1762205999192,0.4990842,106910.0,106900.0,0.05804]
[1762205999390,0.4990842,106910.0,106900.0,0.23513985]
[1762205999690,0.40553,106910.0,106900.0,0.23513985]
[1762206000188,0.04473,106910.0,106900.0,0.20172511]
[1762206000390,0.40553,106930.0,106920.0,0.1515855]
[1762206000594,0.4990668,106930.0,106920.0,0.50962052]
[1762206000796,0.4990668,106930.0,106920.0,0.41607502]
[1762206000998,0.5060468,106930.0,106920.0,0.35803502]
[1762206001190,0.93257495,106930.0,106920.0,0.03339502]
[1762206001385,0.1382755,106920.0,106910.0,0.03339502]
[1762206001593,0.69835365,106920.0,106910.0,0.35803502]
[1762206001797,0.70765644,106920.0,106910.0,0.45158932]
[1762206002293,0.51492829,106920.0,106910.0,0.47360932]
[1762206002494,0.51492829,106920.0,106910.0,0.38005502]
[1762206002992,0.51492829,106920.0,106910.0,0.47360922]
[1762206003498,0.40553,106920.0,106910.0,0.50962922]
[1762206003990,0.4990755,106920.0,106910.0,0.50962922]
[1762206004397,0.4990755,106920.0,106910.0,0.50962932]
[1762206004582,0.51483342,106920.0,106910.0,0.03339502]
[1762206004787,0.1462643,106910.0,106900.0,0.03339502]
[1762206004991,1.02439245,106910.0,106900.0,0.03339502]
[1762206005193,0.138293,106900.0,106890.0,0.55973655]
[1762206005494,0.499093,106900.0,106890.0,0.55973655]
[1762206005692,0.40553,106900.0,106890.0,0.55973655]
[1762206006397,0.499093,106900.0,106890.0,0.55973655]
[1762206006989,0.40553,106900.0,106890.0,0.55973655]
[1762206007292,0.499093,106900.0,106890.0,0.55973655]
[1762206007492,0.499093,106900.0,106890.0,0.14152755]
[1762206007695,0.69678115,106900.0,106890.0,0.35799502]
[1762206007900,0.69182115,106900.0,106890.0,0.50960682]
[1762206008096,0.69182115,106900.0,106890.0,0.18500682]
[1762206008397,0.69182115,106900.0,106890.0,0.50960682]
[1762206008598,0.69182115,106900.0,106890.0,0.09143502]
[1762206008901,0.93066115,106900.0,106890.0,0.03339502]
[1762206009098,0.1383018,106890.0,106880.0,0.14152755]
[1762206009293,0.69182995,106890.0,106880.0,0.09143502]
[1762206010398,0.69182995,106890.0,106880.0,0.05804]
[1762206010592,0.1383106,106880.0,106870.0,0.23511455]
[1762206010795,0.4991106,106880.0,106870.0,0.55971685]
[1762206012401,0.4991106,106880.0,106870.0,0.56171685]
[1762206012902,0.4991106,106880.0,106870.0,0.51162432]
[1762206013102,0.69183875,106880.0,106870.0,0.41803502]
[1762206013401,0.69183875,106880.0,106870.0,0.51162432]
[1762206013596,0.69183875,106880.0,106870.0,0.41803502]
[1762206013904,0.69183875,106880.0,106870.0,0.51162432]
[1762206013905,0.50842028,106880.0,106870.0,0.51162432]
[1762206014501,0.50842028,106880.0,106870.0,0.41803502]
[1762206014700,0.50842028,106880.0,106870.0,0.09343502]
[1762206014902,0.50842028,106880.0,106870.0,0.41803502]
[1762206015303,0.50842028,106880.0,106870.0,0.51162432]
[1762206015904,0.50842028,106880.0,106870.0,0.51166432]
[1762206017004,0.50842028,106880.0,106870.0,0.09343502]
[1762206017208,0.51497028,106880.0,106870.0,0.49871432]
[1762206017507,0.50842028,106880.0,106870.0,0.51160432]
[1762206017708,0.51497028,106880.0,106870.0,0.03539502]
[1762206017903,0.70769843,106880.0,106870.0,0.002]
[1762206018202,0.4046,106880.0,106870.0,0.18577432]
[1762206018508,0.3608,106880.0,106870.0,0.20047183]
[1762206019007,0.40472,106890.0,106880.0,0.1503706]
[1762206019206,0.40472,106890.0,106880.0,0.50852991]
[1762206019409,0.04392,106890.0,106880.0,0.50852991]
[1762206020801,0.04392,106890.0,106880.0,0.55862244]
[1762206021310,0.40472,106900.0,106890.0,0.1503618]
[1762206021609,0.40472,106900.0,106890.0,0.18372111]
[1762206021999,0.40472,106910.0,106900.0,0.1503531]
[1762206022195,0.04392,106910.0,106900.0,0.50853676]
[1762206022606,0.40472,106920.0,106910.0,0.1503443]
[1762206022804,0.40472,106920.0,106910.0,0.18368796]
[1762206023009,0.40472,106920.0,106910.0,0.23378049]
[1762206023201,0.3608,106920.0,106910.0,0.23378049]
[1762206023397,0.04392,106930.0,106920.0,0.1503352]
[1762206023609,0.04392,106930.0,106920.0,0.50856534]
[1762206024898,0.1374564,106930.0,106920.0,0.50856534]
[1762206025103,0.4982564,106930.0,106920.0,0.41502014]
[1762206025305,0.4982564,106930.0,106920.0,0.38167]
[1762206025906,0.69098455,106930.0,106920.0,0.38163]
[1762206026107,0.69796455,106930.0,106920.0,0.38163]
[1762206027016,0.5052364,106930.0,106920.0,0.38163]
[1762206027313,0.5052364,106930.0,106920.0,0.05679]
[1762206027513,0.69796455,106930.0,106920.0,0.38163]
[1762206028210,0.5052364,106930.0,106920.0,0.38163]
[1762206029214,0.5052364,106930.0,106920.0,0.4751755]
[1762206029215,0.4982564,106930.0,106920.0,0.4751755]
[1762206030010,0.4982564,106930.0,106920.0,0.38163]
[1762206030410,0.5052364,106930.0,106920.0,0.38163]
[1762206030809,0.4982564,106930.0,106920.0,0.38163]
[1762206031211,0.69098455,106930.0,106920.0,0.38163]
[1762206032309,0.4982564,106930.0,106920.0,0.38163]
[1762206033011,0.4982564,106930.0,106920.0,0.4751755]
[1762206034713,0.4982564,106930.0,106920.0,0.38163]
[1762206035914,0.4982564,106930.0,106920.0,0.4751755]
[1762206036313,0.4982564,106930.0,106920.0,0.38163]
[1762206036714,0.4982564,106930.0,106920.0,0.4751755]
[1762206037012,0.4982564,106930.0,106920.0,0.38163]
[1762206038320,0.4982564,106930.0,106920.0,0.1503355]
[1762206038620,0.4982564,106930.0,106920.0,0.05679]
[1762206040923,0.69098455,106930.0,106920.0,0.05679]
[1762206046819,0.1463556,106920.0,106910.0,0.04476]
[1762206047017,1.02440375,106920.0,106910.0,0.04476]
[1762206047220,0.1398139,106910.0,106900.0,0.41548014]
[1762206047428,0.69334205,106910.0,106900.0,0.38217]
[1762206048328,0.63200045,106910.0,106900.0,0.41548014]
[1762206050027,0.63200045,106910.0,106900.0,0.50904284]
[1762206050327,0.63200045,106910.0,106900.0,0.18452284]
[1762206051320,0.63200045,106910.0,106900.0,0.09096014]
[1762206052825,0.63200045,106910.0,106900.0,0.18452314]
[1762206053424,0.63200045,106910.0,106900.0,0.09096014]
[1762206054323,0.40706,106910.0,106900.0,0.18452324]
[1762206054528,0.40706,106910.0,106900.0,0.23461577]
[1762206054824,0.5006143,106910.0,106900.0,0.23461577]
[1762206055224,0.5006143,106910.0,106900.0,0.14105267]
[1762206055533,0.5006143,106910.0,106900.0,0.18452314]
[1762206055921,0.5006143,106910.0,106900.0,0.23461567]
[1762206056830,0.63200085,106910.0,106900.0,0.18452314]
[1762206058131,0.63200085,106910.0,106900.0,0.09096014]
[1762206061524,0.5006143,106910.0,106900.0,0.18452314]
[1762206062124,0.63200085,106910.0,106900.0,0.09096014]
[1762206062428,0.63200085,106910.0,106900.0,0.18452324]
[1762206062625,0.63200085,106910.0,106900.0,0.09096014]
[1762206063029,0.63200085,106910.0,106900.0,0.18452324]
[1762206063230,0.63200085,106910.0,106900.0,0.09096014]
[1762206064332,0.87382085,106910.0,106900.0,0.03331014]
[1762206064533,0.04626,106900.0,106890.0,0.07807014]
[1762206064831,0.63200955,106900.0,106890.0,0.07807014]
[1762206065024,0.96148955,106900.0,106890.0,0.03331014]
[1762206065226,0.1398318,106890.0,106880.0,0.40792267]
[1762206065428,0.63899835,106890.0,106880.0,0.40259014]
[1762206065626,0.63899835,106890.0,106880.0,0.41617014]
[1762206065934,0.63201835,106890.0,106880.0,0.41617014]
[1762206066234,0.63201835,106890.0,106880.0,0.18523064]
[1762206066625,0.63201835,106890.0,106880.0,0.1519205]
[1762206067832,0.54761771,106890.0,106880.0,0.1519205]
[1762206068030,0.40706,106890.0,106880.0,0.18523064]
[1762206068239,0.38399,106890.0,106880.0,0.64117719]
[1762206068534,0.5006245,106900.0,106890.0,0.1519118]
[1762206068937,0.40706,106900.0,106890.0,0.1519118]
[1762206069139,0.5006231,106900.0,106890.0,0.1519118]
[1762206069640,0.5016231,106900.0,106890.0,0.1519118]
[1762206070837,0.5016231,106900.0,106890.0,0.18522194]
[1762206072532,0.5016231,106900.0,106890.0,0.67740849]
[1762206072533,0.001,106900.0,106890.0,0.67740849]
[1762206072837,0.001,106900.0,106890.0,0.69419088]
[1762206073636,1.5935549,106910.0,106900.0,0.0935631]
[1762206073937,1.5935549,106910.0,106900.0,0.5098085]
[1762206074331,1.5,106910.0,106900.0,0.69128758]
[1762206074530,1.5,106910.0,106900.0,1.05208758]
[1762206074732,1.5,106910.0,106900.0,1.01874218]
[1762206075034,0.3608,106920.0,106910.0,0.1518338]
[1762206075232,0.3608,106920.0,106910.0,0.33322325]
[1762206075439,0.4990981,106930.0,106920.0,0.1518251]
[1762206075626,0.4990981,106930.0,106920.0,0.5097257]
[1762206076232,0.50838209,106930.0,106920.0,0.5097257]
[1762206076738,0.05845,106920.0,106910.0,0.0833435]
[1762206076942,0.05845,106920.0,106910.0,0.0333406]
[1762206076943,0.60794205,106920.0,106910.0,0.0333406]
[1762206077137,0.1520043,106910.0,106900.0,0.0781306]
[1762206077340,0.5128043,106910.0,106900.0,0.0781306]
[1762206077737,0.41925,106910.0,106900.0,0.1851836]
[1762206077937,0.5128043,106910.0,106900.0,0.1851836]
[1762206079544,0.5138043,106910.0,106900.0,0.0916206]
[1762206080443,0.5138043,106910.0,106900.0,0.1851836]
[1762206080640,0.42025,106910.0,106900.0,0.1851836]
[1762206080836,0.001,106910.0,106900.0,0.2018459]
[1762206081041,0.02369,106910.0,106900.0,0.28322955]
[1762206081240,0.02369,106910.0,106900.0,0.151843]
[1762206081738,1.52369,106910.0,106900.0,0.151843]
[1762206082140,1.52269,106910.0,106900.0,0.151843]
[1762206082447,1.6162443,106910.0,106900.0,0.20183753]
[1762206083144,0.3608,106920.0,106910.0,0.1518343]
[1762206083449,0.40556,106920.0,106910.0,0.50967304]
[1762206083648,1.9991055,106920.0,106910.0,0.52634883]
[1762206084242,1.90556,106920.0,106910.0,0.55966186]
[1762206084442,1.9991055,106920.0,106910.0,0.55966186]
[1762206084650,1.9991055,106920.0,106910.0,0.52634883]
[1762206084851,1.9991055,106920.0,106910.0,0.55965991]
[1762206085149,2.0001055,106920.0,106910.0,0.55965991]
[1762206085448,2.0001055,106920.0,106910.0,0.50966538]
[1762206085649,1.9991055,106920.0,106910.0,0.50966538]
[1762206085844,1.90556,106920.0,106910.0,0.50966538]
[1762206086149,0.40556,106920.0,106910.0,0.65773538]
[1762206086650,0.04476,106920.0,106910.0,0.88714883]
[1762206086844,0.04476,106920.0,106910.0,0.52634883]
[1762206087549,0.04476,106920.0,106910.0,0.4763543]
[1762206088146,0.1383055,106920.0,106910.0,0.4763543]
[1762206088651,0.04476,106920.0,106910.0,0.4763543]
[1762206088952,0.04476,106920.0,106910.0,0.8371543]
[1762206090450,0.04476,106920.0,106910.0,0.4763543]
[1762206091347,1.9680328,106930.0,106920.0,0.1498255]
[1762206091539,1.9543428,106930.0,106920.0,0.1498255]
[1762206091741,0.40569,106930.0,106920.0,0.1498255]
[1762206092349,0.06730075,106930.0,106920.0,0.1498255]
[1762206092544,1.97749734,106940.0,106930.0,0.1498168]
[1762206092545,1.96380714,106940.0,106930.0,0.1498168]
[1762206092747,1.96380714,106940.0,106930.0,0.4742968]
[1762206093148,1.97749714,106940.0,106930.0,0.36786]
[1762206093348,2.10888369,106940.0,106930.0,0.36786]
[1762206094854,2.10988369,106940.0,106930.0,0.36786]
[1762206095956,2.10988369,106940.0,106930.0,0.4613968]
[1762206097158,2.10988369,106940.0,106930.0,0.04338]
[1762206097358,2.10988369,106940.0,106930.0,0.4613568]
[1762206097859,2.10988369,106940.0,106930.0,0.36782]
[1762206098361,2.10988369,106940.0,106930.0,0.4613568]
[1762206098762,1.97849714,106940.0,106930.0,0.4613568]
[1762206099463,2.10988369,106940.0,106930.0,0.4742568]
[1762206099855,1.97849714,106940.0,106930.0,0.4742568]
[1762206100465,1.97849714,106940.0,106930.0,0.4613568]
[1762206101069,1.88496914,106940.0,106930.0,0.4742568]
[1762206101270,1.8618,106940.0,106930.0,0.4742568]
[1762206101672,1.9553281,106940.0,106930.0,0.4742568]
[1762206102367,1.96485241,106940.0,106930.0,0.4742568]
[1762206103277,1.97854241,106940.0,106930.0,0.4742568]
[1762206103477,1.97854241,106940.0,106930.0,0.36782]
[1762206103773,1.97854241,106940.0,106930.0,0.4613569]
[1762206104579,1.97854241,106940.0,106930.0,0.4613564]
[1762206106774,1.501,106940.0,106930.0,0.96703295]
[1762206106975,0.138738,106940.0,106930.0,0.4748464]
[1762206107176,0.512658,106940.0,106930.0,0.4748468]
[1762206107368,0.499538,106940.0,106930.0,0.4748468]
[1762206107569,1.999538,106940.0,106930.0,0.4748468]
[1762206107770,1.90601,106940.0,106930.0,0.4748468]
[1762206107966,0.40601,106940.0,106930.0,0.4748468]
[1762206108274,0.04521,106940.0,106930.0,0.88564133]
[1762206109578,0.04521,106940.0,106930.0,1.01702788]
[1762206110069,0.02211,106940.0,106930.0,1.01702788]
[1762206110378,0.001,106940.0,106930.0,0.88564133]
[1762206110579,0.02211,106940.0,106930.0,0.88564133]
[1762206110881,0.04521,106940.0,106930.0,0.88564133]
[1762206111468,0.04421,106940.0,106930.0,0.88664133]
[1762206112270,0.04421,106940.0,106930.0,0.99163783]
[1762206112672,1.5,106950.0,106940.0,0.04234]
[1762206112878,1.5,106950.0,106940.0,0.1493581]
[1762206113678,1.5,106950.0,106940.0,0.19935263]
[1762206114080,1.5,106950.0,106940.0,0.1493581]
[1762206114378,1.5,106950.0,106940.0,0.5101581]
[1762206114577,1.5,106950.0,106940.0,0.56015263]
[1762206114771,0.04421,106950.0,106940.0,0.56015263]
[1762206115286,1.54421,106950.0,106940.0,0.5101581]
[1762206116077,1.54421,106950.0,106940.0,0.56015263]
[1762206117275,0.51767083,106970.0,106960.0,0.1358499]
[1762206117481,0.54010721,106970.0,106960.0,0.4718399]
[1762206117674,0.54010121,106970.0,106960.0,0.4718399]
[1762206117880,0.43714638,106970.0,106960.0,0.4718399]
[1762206118281,1.93814638,106970.0,106960.0,0.4718399]
[1762206118674,2.03164748,106970.0,106960.0,0.4718399]
[1762206119984,0.41571,106970.0,106960.0,0.4718399]
[1762206120185,0.05491,106970.0,106960.0,0.4718399]
[1762206120488,0.04821,106970.0,106960.0,0.5768364]
[1762206121089,0.04821,106970.0,106960.0,0.88263443]
[1762206121276,0.04821,106970.0,106960.0,0.4718399]
[1762206121481,0.1417111,106970.0,106960.0,0.4718399]
[1762206121688,1.6417111,106970.0,106960.0,0.4718399]
[1762206121878,2.1164876,106970.0,106960.0,0.1146299]
[1762206122082,2.1164876,106970.0,106960.0,0.4601299]
[1762206122281,2.1164876,106970.0,106960.0,0.36662]
[1762206123283,0.1508399,106960.0,106950.0,0.04234]
[1762206123586,0.1508574,106940.0,106930.0,0.09233453]
[1762206123786,0.1508661,106930.0,106920.0,0.19936593]
[1762206123985,0.2558626,106930.0,106920.0,0.52364593]
[1762206124184,0.1508661,106930.0,106920.0,0.43010453]
[1762206124386,0.05733,106930.0,106920.0,0.52364943]
[1762206124893,0.1508661,106930.0,106920.0,0.52364943]
[1762206125190,0.05733,106930.0,106920.0,0.52664943]
[1762206125689,0.02111,106940.0,106930.0,0.1358761]